fUSD/lending_fUSD_20250623
["ID","MTS","AMOUNT","RATE_DAILY","PERIOD"]
[367218091,1750703466546,-490.0,0.00023431,2]
[367218093,1750703466556,-385.85057885,0.00023431,2]
[367218257,1750703468153,-202.0,0.0001957,2]
[367218259,1750703468165,-226.57331414,0.00022881,2]
[367218261,1750703468175,-84.22669176,0.00022881,2]
[367218267,1750703468220,-405.77330824,0.00022881,2]
[367218269,1750703468229,-490.0,0.00022881,2]
[367218271,1750703468240,-500.0,0.00022882,2]
[367218273,1750703468250,-605.36,0.00022882,2]
[367218275,1750703468259,-1558.98,0.00022883,2]
[367218277,1750703468269,-151.0,0.00022883,7]
[367218279,1750703468279,-433.78377096,0.00023155,2]
[367218797,1750703553770,200.51,0.00013699,2]
[367218817,1750703673830,6382.95274684,0.00027,120]
[367218837,1750704212867,150.0,0.0001911,2]
[367218839,1750704384927,250.0,0.00015,2]
[367218869,1750704596028,198.33,0.00013699,2]
[367218873,1750704632227,-151.0,0.00020187,2]
[367218874,1750704632237,-198.33,0.00020187,2]
[367218875,1750704632246,-150.67,0.00020482,2]
[367218878,1750704632266,-51.33,0.00020482,2]
[367218880,1750704632275,-202.0,0.00020482,2]
[367218882,1750704632285,-150.0,0.00021082,2]
[367218884,1750704632295,-200.0,0.00021745,7]
[367218886,1750704632305,-7.11814184,0.0002179,2]
[367218888,1750704632319,-196.44941596,0.0002179,2]
[367218892,1750704632420,-202.0,0.00021799,3]
[367218893,1750704632429,-3000.0,0.0002184,2]
[367218894,1750704632438,-263.35,0.0002189,2]
[367218895,1750704632446,-516.0,0.00021949,2]
[367218896,1750704632454,-19571.04,0.0002195,2]
[367218897,1750704632464,-1000.0,0.00021956,2]
[367218898,1750704632473,-13.79304678,0.00022024,2]
[367218899,1750704632496,-652.20695322,0.00022024,2]
[367218900,1750704632506,-150.0,0.00022029,2]
[367218901,1750704632515,-5761.14,0.00022032,2]
[367218902,1750704632524,-7773.05387897,0.00022731,2]
[367218908,1750704638060,-22003.97577001,0.00022731,2]
[367218909,1750704638069,-29777.02964898,0.00022753,2]
[367218910,1750704638079,-4047.01197194,0.00022753,2]
[367218911,1750704638223,-1051.74850456,0.00022753,2]
[367219092,1750704640230,-20821.86814005,0.00022753,2]
[367219405,1750704642986,-3856.40103243,0.00022753,2]
[367219407,1750704642996,-959.4,0.00022766,2]
[367219409,1750704643007,-879.33203089,0.00022767,2]
[367219411,1750704643016,-207.4,0.00022767,2]
[367219413,1750704643026,-151.45809244,0.0002278,2]
[367219415,1750704643035,-164.33357742,0.00022781,2]
[367219417,1750704643046,-171.19502806,0.00022781,2]
[367219419,1750704643057,-3499.20985826,0.00022781,2]
[367219424,1750704643094,-4806.48791588,0.00022781,2]
[367219426,1750704643104,-3956.37440721,0.00022781,2]
[367219428,1750704643114,-1939.8766,0.00022781,2]
[367219430,1750704643124,-216.65458595,0.00022782,2]
[367219432,1750704643133,-422.2546,0.00022783,2]
[367219434,1750704643143,-5517.54671528,0.000228,8]
[367219436,1750704643152,-5517.54671505,0.000228,8]
[367219438,1750704643162,-29777.02964898,0.00022838,2]
[367219440,1750704643171,-29777.02964898,0.00022854,2]
[367219442,1750704643180,-161.27,0.00022855,2]
[367219444,1750704643190,-151.45809238,0.00022862,2]
[367219446,1750704643200,-151.0,0.00022868,2]
[367219448,1750704643209,-500.0,0.00022873,2]
[367219450,1750704643218,-500.0,0.00022873,2]
[367219452,1750704643227,-500.0,0.00022873,2]
[367219454,1750704643236,-490.0,0.0002288,2]
[367219456,1750704643246,-490.0,0.0002288,2]
[367219458,1750704643255,-497.326077,0.0002288,2]
[367219460,1750704643264,-490.0,0.0002288,2]
[367219462,1750704643273,-490.0,0.0002288,2]
[367219464,1750704643283,-500.0,0.0002288,2]
[367219466,1750704643292,-500.0,0.0002288,2]
[367219468,1750704643301,-490.0,0.0002288,2]
[367219471,1750704643311,-226.21723506,0.0002288,2]
[367219474,1750704643320,-490.0,0.0002288,2]
[367219476,1750704643329,-388.98389108,0.0002288,2]
[367219478,1750704643339,-490.0,0.0002288,2]
[367219480,1750704643349,-490.0,0.0002288,2]
[367219482,1750704643358,-490.0,0.0002288,2]
[367219484,1750704643369,-490.0,0.0002288,2]
[367219486,1750704643378,-490.0,0.0002288,2]
[367219488,1750704643388,-490.0,0.0002288,2]
[367219490,1750704643397,-490.0,0.0002288,2]
[367219492,1750704643407,-490.0,0.0002288,2]
[367219494,1750704643416,-490.0,0.0002288,2]
[367219496,1750704643426,-490.0,0.0002288,2]
[367219499,1750704643436,-490.0,0.0002288,2]
[367219501,1750704643445,-490.0,0.0002288,2]
[367219502,1750704643455,-490.0,0.0002288,2]
[367219504,1750704643464,-490.0,0.0002288,2]
[367219506,1750704643474,-490.0,0.0002288,2]
[367219508,1750704643483,-500.0,0.0002288,2]
[367219510,1750704643493,-490.0,0.0002288,2]
[367219512,1750704643504,-490.0,0.0002288,2]
[367219514,1750704643513,-490.0,0.0002288,2]
[367219516,1750704643523,-490.0,0.0002288,2]
[367219519,1750704643533,-490.0,0.0002288,2]
[367219520,1750704643543,-490.0,0.0002288,2]
[367219522,1750704643553,-490.0,0.0002288,2]
[367219524,1750704643563,-490.0,0.0002288,2]
[367219527,1750704643573,-490.0,0.0002288,2]
[367219530,1750704643582,-573.86,0.0002288,2]
[367219533,1750704643592,-269.13,0.0002288,2]
[367219535,1750704643602,-570.62525941,0.0002288,2]
[367219537,1750704643611,-490.0,0.0002288,2]
[367219539,1750704643620,-579.44,0.0002288,2]
[367219541,1750704643629,-490.0,0.0002288,2]
[367219543,1750704643638,-490.0,0.0002288,2]
[367219545,1750704643648,-490.0,0.0002288,2]
[367219547,1750704643657,-698.13,0.0002288,2]
[367219549,1750704643668,-490.0,0.0002288,2]
[367219551,1750704643678,-757.53,0.0002288,2]
[367219553,1750704643687,-490.0,0.0002288,2]
[367219555,1750704643696,-931.34,0.0002288,2]
[367219557,1750704643707,-490.0,0.0002288,2]
[367219559,1750704643716,-490.0,0.0002288,2]
[367219561,1750704643725,-596.45,0.0002288,2]
[367219563,1750704643735,-490.0,0.0002288,2]
[367219565,1750704643745,-560.38,0.0002288,2]
[367219567,1750704643754,-843.33,0.0002288,2]
[367219569,1750704643764,-493.0,0.0002288,2]
[367219571,1750704643773,-490.0,0.0002288,2]
[367219573,1750704643783,-490.0,0.0002288,2]
[367219575,1750704643792,-276.94589911,0.0002288,2]
[367219577,1750704643802,-490.0,0.0002288,2]
[367219579,1750704643811,-490.0,0.0002288,2]
[367219581,1750704643821,-490.0,0.0002288,2]
[367219583,1750704643830,-490.0,0.0002288,2]
[367219585,1750704643842,-490.0,0.0002288,2]
[367219587,1750704643852,-490.0,0.0002288,2]
[367219589,1750704643861,-1171.21,0.0002288,2]
[367219591,1750704643871,-7051.51,0.0002288,2]
[367219593,1750704643880,-497.73,0.0002288,2]
[367219595,1750704643889,-490.0,0.0002288,2]
[367219597,1750704643900,-490.0,0.0002288,2]
[367219599,1750704643909,-490.0,0.0002288,2]
[367219601,1750704643919,-490.0,0.0002288,2]
[367219603,1750704643928,-885.37,0.0002288,2]
[367219605,1750704643937,-490.0,0.0002288,2]
[367219607,1750704643947,-1391.01,0.0002288,2]
[367219609,1750704643956,-490.0,0.0002288,2]
[367219611,1750704643970,-490.0,0.0002288,2]
[367219613,1750704643979,-1263.87,0.0002288,2]
[367219615,1750704643989,-490.0,0.0002288,2]
[367219617,1750704643998,-490.0,0.0002288,2]
[367219619,1750704644009,-490.0,0.0002288,2]
[367219621,1750704644018,-891.29,0.0002288,2]
[367219623,1750704644027,-494.6,0.0002288,2]
[367219625,1750704644038,-863.04,0.0002288,2]
[367219627,1750704644047,-490.0,0.0002288,2]
[367219629,1750704644057,-490.0,0.0002288,2]
[367219631,1750704644068,-490.0,0.0002288,2]
[367219633,1750704644077,-752.25,0.0002288,2]
[367219635,1750704644086,-490.0,0.0002288,2]
[367219637,1750704644097,-976.29,0.0002288,2]
[367219639,1750704644106,-815.82,0.0002288,2]
[367219641,1750704644116,-863.97,0.0002288,2]
[367219643,1750704644126,-490.0,0.0002288,2]
[367219645,1750704644135,-490.0,0.0002288,2]
[367219647,1750704644145,-490.0,0.0002288,2]
[367219649,1750704644154,-768.99,0.0002288,2]
[367219651,1750704644164,-490.0,0.0002288,2]
[367219653,1750704644175,-490.0,0.0002288,2]
[367219655,1750704644184,-1759.01,0.0002288,2]
[367219657,1750704644193,-551.99,0.0002288,2]
[367219659,1750704644203,-550.95,0.0002288,2]
[367219661,1750704644213,-664.71,0.0002288,2]
[367219663,1750704644223,-490.0,0.0002288,2]
[367219665,1750704644232,-723.21,0.0002288,2]
[367219667,1750704644242,-490.0,0.0002288,2]
[367219669,1750704644251,-7447.19,0.0002288,2]
[367219671,1750704644261,-490.0,0.0002288,2]
[367219673,1750704644271,-553.45,0.0002288,2]
[367219674,1750704644280,-490.0,0.0002288,2]
[367219675,1750704644289,-490.0,0.0002288,2]
[367219676,1750704644299,-937.14,0.0002288,2]
[367219677,1750704644308,-490.0,0.0002288,2]
[367219678,1750704644317,-490.0,0.0002288,2]
[367219679,1750704644326,-605.75,0.0002288,2]
[367219680,1750704644336,-736.48,0.0002288,2]
[367219681,1750704644346,-864.71,0.0002288,2]
[367219682,1750704644355,-490.0,0.0002288,2]
[367219683,1750704644365,-490.0,0.0002288,2]
[367219684,1750704644374,-490.0,0.0002288,2]
[367219685,1750704644383,-941.61,0.0002288,2]
[367219686,1750704644392,-490.0,0.0002288,2]
[367219687,1750704644401,-490.0,0.0002288,2]
[367219688,1750704644410,-778.18,0.0002288,2]
[367219689,1750704644419,-490.0,0.0002288,2]
[367219690,1750704644428,-724.46,0.0002288,2]
[367219691,1750704644437,-490.0,0.0002288,2]
[367219693,1750704644447,-490.0,0.0002288,2]
[367219695,1750704644456,-490.0,0.0002288,2]
[367219697,1750704644466,-3110.61,0.0002288,2]
[367219699,1750704644476,-920.25,0.0002288,2]
[367219701,1750704644485,-580.99,0.0002288,2]
[367219703,1750704644495,-894.88,0.0002288,2]
[367219705,1750704644504,-490.0,0.0002288,2]
[367219707,1750704644514,-636.52,0.0002288,2]
[367219709,1750704644524,-1177.15,0.0002288,2]
[367219711,1750704644534,-490.0,0.0002288,2]
[367219714,1750704644544,-490.0,0.0002288,2]
[367219716,1750704644554,-490.0,0.0002288,2]
[367219718,1750704644563,-490.0,0.0002288,2]
[367219720,1750704644573,-4165.02,0.0002288,2]
[367219721,1750704644582,-513.46,0.0002288,2]
[367219724,1750704644592,-1038.58,0.0002288,2]
[367219726,1750704644601,-607.64,0.0002288,2]
[367219728,1750704644610,-490.0,0.0002288,2]
[367219729,1750704644619,-1890.82,0.0002288,2]
[367219732,1750704644629,-584.05,0.0002288,2]
[367219733,1750704644638,-662.31,0.0002288,2]
[367219735,1750704644648,-1033.12,0.0002288,2]
[367219737,1750704644657,-490.0,0.0002288,2]
[367219739,1750704644666,-566.85,0.0002288,2]
[367219741,1750704644676,-648.39,0.0002288,2]
[367219743,1750704644685,-1933.09,0.0002288,2]
[367219745,1750704644695,-780.54,0.0002288,2]
[367219748,1750704644705,-490.0,0.0002288,2]
[367219749,1750704644716,-244.38437,0.0002288,2]
[367219751,1750704644726,-490.0,0.0002288,2]
[367219753,1750704644735,-490.0,0.0002288,2]
[367219755,1750704644744,-822.42,0.0002288,2]
[367219757,1750704644754,-490.0,0.0002288,2]
[367219759,1750704644763,-490.0,0.0002288,2]
[367219761,1750704644773,-317.09759956,0.0002288,2]
[367219763,1750704644783,-151.476984,0.0002288,2]
[367219765,1750704644792,-1292.78,0.0002288,2]
[367219768,1750704644802,-490.0,0.0002288,2]
[367219770,1750704644812,-490.0,0.0002288,2]
[367219772,1750704644821,-490.0,0.0002288,2]
[367219773,1750704644831,-881.05,0.0002288,2]
[367219776,1750704644840,-490.0,0.0002288,2]
[367219777,1750704644850,-490.0,0.0002288,2]
[367219779,1750704644859,-714.02,0.0002288,2]
[367219782,1750704644868,-490.0,0.00022881,2]
[367219784,1750704644878,-490.0,0.00022881,2]
[367219785,1750704644887,-490.0,0.00022881,2]
[367219787,1750704644898,-510.63,0.00022881,2]
[367219789,1750704644907,-490.0,0.00022881,2]
[367219792,1750704644917,-498.65172867,0.00022881,2]
[367219794,1750704644927,-490.0,0.00022881,2]
[367219795,1750704644937,-492.75,0.00022881,2]
[367219798,1750704644947,-490.0,0.00022881,2]
[367219799,1750704644956,-185.13823897,0.00022881,2]
[367219801,1750704644969,-490.0,0.00022881,2]
[367219803,1750704644979,-500.0,0.00022881,2]
[367219805,1750704644989,-490.0,0.00022881,2]
[367219807,1750704644998,-490.0,0.00022881,2]
[367219809,1750704645007,-490.0,0.00022881,2]
[367219812,1750704645018,-490.0,0.00022881,2]
[367219814,1750704645027,-283.96541935,0.00022881,2]
[367219816,1750704645037,-490.0,0.00022881,2]
[367219817,1750704645048,-490.0,0.00022881,2]
[367219819,1750704645057,-490.0,0.00022881,2]
[367219821,1750704645066,-911.05,0.00022881,2]
[367219823,1750704645076,-490.0,0.00022881,2]
[367219826,1750704645085,-490.0,0.00022881,2]
[367219828,1750704645096,-490.0,0.00022881,2]
[367219830,1750704645105,-490.0,0.00022881,2]
[367219831,1750704645114,-490.0,0.00022881,2]
[367219833,1750704645124,-513.93,0.00022881,2]
[367219835,1750704645134,-490.0,0.00022881,2]
[367219837,1750704645144,-490.0,0.00022881,2]
[367219839,1750704645153,-490.0,0.00022881,2]
[367219842,1750704645163,-490.0,0.00022881,2]
[367219844,1750704645174,-490.0,0.00022881,2]
[367219846,1750704645184,-490.0,0.00022881,2]
[367219847,1750704645193,-490.0,0.00022881,2]
[367219849,1750704645203,-514.05475594,0.00022881,2]
[367219851,1750704645213,-490.0,0.00022881,2]
[367219854,1750704645222,-490.0,0.00022881,2]
[367219856,1750704645232,-490.0,0.00022881,2]
[367219857,1750704645241,-830.94,0.00022881,2]
[367219860,1750704645251,-490.0,0.00022881,2]
[367219862,1750704645260,-490.0,0.00022881,2]
[367219864,1750704645270,-608.2,0.00022881,2]
[367219866,1750704645279,-490.0,0.00022881,2]
[367219867,1750704645288,-490.0,0.00022881,2]
[367219870,1750704645298,-490.0,0.00022881,2]
[367219872,1750704645308,-701.76,0.00022881,2]
[367219874,1750704645318,-490.0,0.00022881,2]
[367219876,1750704645327,-490.0,0.00022881,2]
[367219878,1750704645336,-490.0,0.00022881,2]
[367219880,1750704645346,-490.0,0.00022881,2]
[367219882,1750704645355,-490.0,0.00022881,2]
[367219883,1750704645365,-503.61,0.00022881,2]
[367219886,1750704645375,-490.0,0.00022881,2]
[367219888,1750704645384,-583.77,0.00022881,2]
[367219890,1750704645393,-589.2,0.00022881,2]
[367219892,1750704645403,-490.0,0.00022881,2]
[367219894,1750704645413,-490.0,0.00022881,2]
[367219895,1750704645423,-490.0,0.00022881,2]
[367219897,1750704645433,-490.0,0.00022881,2]
[367219899,1750704645443,-490.0,0.00022881,2]
[367219902,1750704645453,-490.0,0.00022881,2]
[367219904,1750704645463,-622.13,0.00022881,2]
[367219906,1750704645472,-490.0,0.00022881,2]
[367219908,1750704645481,-490.0,0.00022881,2]
[367219910,1750704645491,-490.0,0.00022881,2]
[367219949,1750704645845,-490.0,0.00022881,2]
[367219952,1750704645856,-549.1,0.00022881,2]
[367219954,1750704645867,-490.0,0.00022881,2]
[367219956,1750704645876,-1911.82,0.00022881,2]
[367219958,1750704645886,-490.0,0.00022881,2]
[367219960,1750704645896,-743.14,0.00022881,2]
[367219962,1750704645906,-490.0,0.00022881,2]
[367219964,1750704645915,-490.0,0.00022881,2]
[367219966,1750704645924,-598.09,0.00022881,2]
[367219968,1750704645934,-490.0,0.00022881,2]
[367219970,1750704645943,-490.0,0.00022881,2]
[367219972,1750704645953,-490.0,0.00022881,2]
[367219974,1750704645965,-651.83,0.00022881,2]
[367219976,1750704645975,-490.0,0.00022881,2]
[367219978,1750704645985,-630.28,0.00022881,2]
[367219980,1750704645995,-490.0,0.00022881,2]
[367219982,1750704646005,-490.0,0.00022881,2]
[367219984,1750704646015,-531.94,0.00022881,2]
[367219986,1750704646025,-490.0,0.00022881,2]
[367219988,1750704646035,-490.0,0.00022881,2]
[367219990,1750704646046,-490.0,0.00022881,2]
[367219992,1750704646056,-490.0,0.00022881,2]
[367219994,1750704646065,-490.0,0.00022881,2]
[367219996,1750704646075,-490.0,0.00022881,2]
[367219998,1750704646085,-500.0,0.00022881,2]
[367220000,1750704646095,-490.0,0.00022881,2]
[367220002,1750704646104,-490.0,0.00022881,2]
[367220004,1750704646114,-490.0,0.00022881,2]
[367220006,1750704646123,-490.0,0.00022881,2]
[367220008,1750704646133,-490.0,0.00022881,2]
[367220010,1750704646143,-490.0,0.00022881,2]
[367220012,1750704646153,-490.0,0.00022881,2]
[367220014,1750704646162,-490.0,0.00022881,2]
[367220016,1750704646172,-490.0,0.00022881,2]
[367220018,1750704646182,-457.62517497,0.00022881,2]
[367220020,1750704646192,-555.31622352,0.00022881,2]
[367220022,1750704646202,-490.0,0.00022881,2]
[367220024,1750704646211,-490.0,0.00022881,2]
[367220026,1750704646221,-490.0,0.00022881,2]
[367220028,1750704646230,-949.13,0.00022881,2]
[367220030,1750704646240,-1061.59,0.00022881,2]
[367220032,1750704646250,-502.08794799,0.00022881,2]
[367220034,1750704646259,-502.58,0.00022881,2]
[367220036,1750704646268,-490.0,0.00022881,2]
[367220038,1750704646278,-490.0,0.00022881,2]
[367220040,1750704646288,-490.0,0.00022881,2]
[367220042,1750704646297,-490.0,0.00022881,2]
[367220044,1750704646306,-490.0,0.00022881,2]
[367220046,1750704646316,-490.0,0.00022881,2]
[367220048,1750704646326,-367.97732802,0.00022881,2]
[367220050,1750704646335,-1284.62,0.00022881,2]
[367220052,1750704646344,-490.0,0.00022881,2]
[367220054,1750704646353,-490.0,0.00022881,2]
[367220056,1750704646364,-490.0,0.00022881,2]
[367220058,1750704646373,-1002.25,0.00022881,2]
[367220060,1750704646383,-490.0,0.00022881,2]
[367220062,1750704646392,-856.73,0.00022881,2]
[367220064,1750704646402,-490.0,0.00022881,2]
[367220066,1750704646411,-490.0,0.00022881,2]
[367220068,1750704646420,-490.0,0.00022881,2]
[367220070,1750704646430,-490.0,0.00022881,2]
[367220072,1750704646439,-500.0,0.00022881,2]
[367220075,1750704646449,-697.98,0.00022881,2]
[367220077,1750704646458,-490.0,0.00022881,2]
[367220079,1750704646468,-716.85,0.00022881,2]
[367220081,1750704646477,-1248.39,0.00022881,2]
[367220083,1750704646486,-490.0,0.00022881,2]
[367220085,1750704646495,-490.0,0.00022881,2]
[367220087,1750704646504,-1177.94,0.00022881,2]
[367220089,1750704646513,-490.0,0.00022881,2]
[367220091,1750704646523,-490.0,0.00022881,2]
[367220093,1750704646532,-490.0,0.00022881,2]
[367220095,1750704646542,-490.0,0.00022881,2]
[367220097,1750704646551,-490.0,0.00022881,2]
[367220099,1750704646561,-1741.93,0.00022881,2]
[367220101,1750704646570,-490.0,0.00022881,2]
[367220103,1750704646579,-711.79,0.00022881,2]
[367220105,1750704646589,-770.58,0.00022881,2]
[367220107,1750704646598,-731.43,0.00022881,2]
[367220109,1750704646607,-494.63579919,0.00022881,2]
[367220111,1750704646617,-545.89,0.00022881,2]
[367220113,1750704646626,-490.0,0.00022881,2]
[367220114,1750704646635,-490.0,0.00022881,2]
[367220116,1750704646645,-490.0,0.00022881,2]
[367220118,1750704646654,-490.0,0.00022881,2]
[367220120,1750704646663,-492.41485868,0.00022881,2]
[367220123,1750704646673,-490.0,0.00022881,2]
[367220125,1750704646682,-543.22,0.00022881,2]
[367220126,1750704646691,-487.37847794,0.00022881,2]
[367220128,1750704646700,-699.47,0.00022881,2]
[367220131,1750704646710,-635.38,0.00022881,2]
[367220133,1750704646719,-490.0,0.00022881,2]
[367220135,1750704646729,-1044.13,0.00022881,2]
[367220137,1750704646738,-490.0,0.00022881,2]
[367220139,1750704646747,-490.0,0.00022881,2]
[367220140,1750704646756,-179.88604116,0.00022881,2]
[367220141,1750704646765,-490.0,0.00022881,2]
[367220142,1750704646775,-527.31,0.00022881,2]
[367220143,1750704646784,-1123.52,0.00022881,2]
[367220144,1750704646793,-490.0,0.00022881,2]
[367220146,1750704646802,-490.0,0.00022881,2]
[367220148,1750704646812,-490.0,0.00022881,2]
[367220150,1750704646821,-826.76,0.00022881,2]
[367220152,1750704646830,-490.0,0.00022881,2]
[367220154,1750704646840,-490.0,0.00022881,2]
[367220156,1750704646849,-633.28,0.00022881,2]
[367220158,1750704646858,-773.22,0.00022881,2]
[367220160,1750704646869,-507.46,0.00022881,2]
[367220162,1750704646878,-490.0,0.00022881,2]
[367220164,1750704646888,-713.65,0.00022881,2]
[367220166,1750704646897,-626.47,0.00022881,2]
[367220168,1750704646906,-490.0,0.00022881,2]
[367220170,1750704646917,-502.36,0.00022881,2]
[367220172,1750704646927,-1032.59,0.00022881,2]
[367220174,1750704646937,-490.0,0.00022881,2]
[367220176,1750704646947,-754.12,0.00022881,2]
[367220178,1750704646956,-777.6,0.00022881,2]
[367220180,1750704646969,-601.16,0.00022881,2]
[367220182,1750704646978,-1473.63,0.00022881,2]
[367220184,1750704646987,-490.0,0.00022881,2]
[367220186,1750704646996,-490.0,0.00022881,2]
[367220188,1750704647006,-985.11,0.00022881,2]
[367220190,1750704647016,-611.24,0.00022881,2]
[367220192,1750704647025,-490.0,0.00022881,2]
[367220194,1750704647034,-190.308998,0.00022881,2]
[367220196,1750704647045,-490.0,0.00022881,2]
[367220199,1750704647054,-490.0,0.00022881,2]
[367220200,1750704647064,-490.0,0.00022881,2]
[367220202,1750704647073,-490.0,0.00022881,2]
[367220205,1750704647083,-490.0,0.00022881,2]
[367220207,1750704647092,-529.42,0.00022881,2]
[367220209,1750704647102,-827.88,0.00022881,2]
[367220211,1750704647111,-1013.2,0.00022881,2]
[367220213,1750704647122,-579.99,0.00022881,2]
[367220215,1750704647131,-869.57,0.00022881,2]
[367220217,1750704647140,-1189.08,0.00022881,2]
[367220219,1750704647149,-490.0,0.00022881,2]
[367220221,1750704647159,-893.08,0.00022881,2]
[367220223,1750704647168,-490.0,0.00022881,2]
[367220225,1750704647177,-549.699269,0.00022881,2]
[367220227,1750704647187,-641.04,0.00022881,2]
[367220229,1750704647196,-490.0,0.00022881,2]
[367220231,1750704647206,-490.0,0.00022881,2]
[367220233,1750704647215,-521.06,0.00022881,2]
[367220235,1750704647224,-703.27,0.00022881,2]
[367220237,1750704647234,-1178.73,0.00022881,2]
[367220239,1750704647243,-760.84,0.00022881,2]
[367220241,1750704647252,-490.0,0.00022881,2]
[367220243,1750704647261,-490.0,0.00022881,2]
[367220245,1750704647271,-888.61,0.00022881,2]
[367220247,1750704647280,-490.0,0.00022881,2]
[367220249,1750704647290,-490.0,0.00022881,2]
[367220251,1750704647299,-490.0,0.00022881,2]
[367220253,1750704647308,-490.0,0.00022881,2]
[367220255,1750704647317,-490.0,0.00022881,2]
[367220257,1750704647327,-493.96,0.00022881,2]
[367220259,1750704647336,-500.0,0.00022881,2]
[367220261,1750704647346,-490.0,0.00022881,2]
[367220263,1750704647355,-490.0,0.00022881,2]
[367220265,1750704647365,-663.59,0.00022881,2]
[367220267,1750704647375,-490.0,0.00022881,2]
[367220269,1750704647384,-630.65,0.00022881,2]
[367220271,1750704647393,-526.8,0.00022881,2]
[367220273,1750704647402,-510.16,0.00022881,2]
[367220275,1750704647412,-584.02,0.00022881,2]
[367220278,1750704647421,-490.0,0.00022881,2]
[367220279,1750704647430,-490.0,0.00022881,2]
[367220281,1750704647440,-496.15846898,0.00022881,2]
[367220284,1750704647450,-662.79,0.00022881,2]
[367220286,1750704647459,-490.0,0.00022881,2]
[367220288,1750704647469,-596.46,0.00022881,2]
[367220290,1750704647478,-490.0,0.00022881,2]
[367220292,1750704647487,-641.97,0.00022881,2]
[367220294,1750704647496,-490.0,0.00022881,2]
[367220296,1750704647506,-490.0,0.00022881,2]
[367220298,1750704647515,-490.0,0.00022881,2]
[367220300,1750704647525,-1057.93,0.00022881,2]
[367220302,1750704647535,-1559.72,0.00022881,2]
[367220304,1750704647544,-962.91,0.00022881,2]
[367220306,1750704647553,-490.91036417,0.00022881,2]
[367220308,1750704647562,-490.0,0.00022881,2]
[367220310,1750704647571,-490.0,0.00022881,2]
[367220312,1750704647580,-772.39,0.00022881,2]
[367220314,1750704647590,-490.0,0.00022881,2]
[367220316,1750704647599,-987.08,0.00022881,2]
[367220318,1750704647608,-490.0,0.00022881,2]
[367220320,1750704647619,-490.0,0.00022881,2]
[367220322,1750704647628,-578.64,0.00022881,2]
[367220324,1750704647638,-490.0,0.00022881,2]
[367220326,1750704647648,-490.0,0.00022881,2]
[367220328,1750704647658,-625.55,0.00022881,2]
[367220330,1750704647667,-490.0,0.00022881,2]
[367220332,1750704647677,-584.42,0.00022881,2]
[367220334,1750704647686,-165.64689676,0.00022881,2]
[367220336,1750704647696,-490.0,0.00022881,2]
[367220338,1750704647706,-844.18,0.00022881,2]
[367220340,1750704647716,-1407.89,0.00022881,2]
[367220342,1750704647725,-490.0,0.00022881,2]
[367220344,1750704647735,-490.0,0.00022881,2]
[367220346,1750704647744,-730.06,0.00022881,2]